bitfinex/quotes_SOLUSD_20241123
["timestamp","ask_amount","ask_price","bid_price","bid_amount"]
[1732327117630,2.88964441,255.63,255.57,16.0844]
[1732327117831,4.62343106,255.66,255.57,16.0844]
[1732327118041,2.88995536,255.65,255.57,16.0844]
[1732327118344,2.88995536,255.64,255.57,16.0844]
[1732327118548,7.51338642,255.66,255.57,16.0844]
[1732327118735,2.88995536,255.65,255.57,16.0844]
[1732327118936,2.88995536,255.64,255.57,16.0844]
[1732327119131,2.88995536,255.63,255.57,16.0844]
[1732327119333,2.88995536,255.62,255.57,16.0844]
[1732327119537,4.62343106,255.66,255.57,16.0844]
[1732327119831,2.890501,255.65,255.57,16.0844]
[1732327120034,2.890501,255.64,255.57,16.0844]
[1732327120235,2.890501,255.63,255.57,16.0844]
[1732327120435,2.890501,255.62,255.57,16.0844]
[1732327120646,4.62343106,255.67,255.57,16.0844]
[1732327120950,2.89040398,255.66,255.57,16.0844]
[1732327121249,6.06549708,255.69,255.57,16.0844]
[1732327121445,2.89029465,255.68,255.57,16.0844]
[1732327123241,8.95579173,255.68,255.57,16.0844]
[1732327123442,2.89029465,255.67,255.57,16.0844]
[1732327123642,2.89029465,255.66,255.57,16.0844]
[1732327123845,2.89029465,255.65,255.57,16.0844]
[1732327124049,2.89029465,255.64,255.57,16.0844]
[1732327124355,2.89029465,255.63,255.57,16.0844]
[1732327124559,2.89029465,255.62,255.57,16.0844]
[1732327124738,6.06549708,255.68,255.57,16.0844]
[1732327125055,2.89019804,255.67,255.57,16.0844]
[1732327125235,2.89019804,255.66,255.57,16.0844]
[1732327125435,2.89019804,255.65,255.57,16.0844]
[1732327125760,2.89019804,255.64,255.57,16.0844]
[1732327125939,2.89019804,255.63,255.57,16.0844]
[1732327126140,4.62447145,255.68,255.57,16.0844]
[1732327126342,2.89064284,255.67,255.57,16.0844]
[1732327126660,23.776884,255.65,255.57,16.0844]
[1732327126850,7.51511429,255.64,255.57,16.0844]
[1732327128050,2.89125654,255.63,255.57,16.0844]
[1732327128247,2.89125654,255.62,255.57,16.0844]
[1732327128446,2.89125654,255.61,255.57,16.0844]
[1732327128648,4.62601046,255.64,255.57,16.0844]
[1732327128852,2.89140117,255.63,255.57,16.0844]
[1732327129151,2.89140117,255.62,255.57,16.0844]
[1732327129347,2.89140117,255.61,255.57,16.0844]
[1732327129537,4.62601046,255.64,255.57,16.0844]
[1732327129734,2.89158793,255.63,255.57,16.0844]
[1732327129951,2.89158793,255.62,255.57,16.0844]
[1732327130257,2.89158793,255.61,255.57,16.0844]
[1732327130461,2.89158793,255.6,255.57,16.0844]
[1732327130759,4.62601046,255.64,255.57,16.0844]
[1732327130943,2.89130611,255.63,255.57,16.0844]
[1732327131256,2.89130611,255.62,255.57,16.0844]
[1732327131558,2.89130611,255.61,255.57,16.0844]
[1732327131750,7.51731657,255.65,255.57,16.0844]
[1732327131951,2.89133929,255.64,255.57,16.0844]
[1732327132261,4.62632218,255.67,255.57,16.0844]
[1732327132443,2.89145136,255.66,255.57,16.0844]
[1732327132753,2.89145136,255.65,255.57,16.0844]
[1732327132957,2.89145136,255.64,255.57,16.0844]
[1732327133150,2.89145136,255.67,255.57,16.0844]
[1732327133350,2.89179633,255.66,255.57,16.0844]
[1732327133741,2.89179633,255.65,255.57,16.0844]
[1732327133941,6.06549708,255.71,255.57,16.0844]
[1732327134150,2.8917353,255.7,255.57,16.0844]
[1732327134349,2.8917353,255.69,255.57,16.0844]
[1732327134656,2.8917353,255.68,255.57,16.0844]
[1732327134957,2.8917353,255.67,255.57,16.0844]
[1732327135164,2.8917353,255.66,255.57,16.0844]
[1732327135356,2.8917353,255.65,255.57,16.0844]
[1732327135555,4.62632218,255.7,255.57,16.0844]
[1732327135748,2.89234134,255.7,255.57,16.0844]
[1732327136176,27.51866352,255.7,255.57,16.0844]
[1732327136468,7.51866352,255.69,255.57,16.0844]
[1732327137765,2.89234134,255.68,255.57,16.0844]
[1732327137969,2.89234134,255.67,255.57,16.0844]
[1732327138148,2.89234134,255.66,255.57,16.0844]
[1732327138348,2.89234134,255.65,255.57,16.0844]
[1732327138662,2.89234134,255.64,255.57,16.0844]
[1732327138866,4.62877394,255.7,255.57,16.0844]
[1732327139050,2.89297107,255.69,255.57,16.0844]
[1732327139371,2.89297107,255.68,255.57,16.0844]
[1732327139578,4.62877394,255.7,255.57,16.0844]
[1732327139579,2.89297107,255.67,255.57,16.0844]
[1732327139873,2.89297107,255.66,255.57,16.0844]
[1732327140054,2.89297107,255.65,255.57,16.0844]
[1732327140257,4.62877394,255.7,255.57,16.0844]
[1732327140457,7.52357012,255.7,255.57,16.0844]
[1732327140665,2.89479618,255.69,255.57,16.0844]
[1732327141160,23.776884,255.68,255.57,16.0844]
[1732327141361,7.52357012,255.67,255.57,16.0844]
[1732327141546,2.89479618,255.67,255.57,16.0844]
[1732327141962,2.89479618,255.66,255.57,16.0844]
[1732327142167,2.89479618,255.65,255.57,16.0844]
[1732327142464,2.89479618,255.64,255.57,16.0844]
[1732327142660,2.89479618,255.63,255.57,16.0844]
[1732327142974,4.62877394,255.66,255.57,16.0844]
[1732327143268,2.89520643,255.65,255.57,16.0844]
[1732327143566,7.52398037,255.65,255.57,16.0844]
[1732327143764,2.89520643,255.64,255.57,16.0844]
[1732327143961,2.89520643,255.63,255.57,16.0844]
[1732327144161,4.62877394,255.66,255.57,16.0844]
[1732327144342,7.52554963,255.66,255.57,16.0844]
[1732327144964,2.89770844,255.65,255.57,16.0844]
[1732327145269,2.89766692,255.64,255.57,16.0844]
[1732327145465,2.89766692,255.63,255.57,16.0844]
[1732327145950,20.0,255.66,255.57,16.0844]
[1732327146151,2.89818657,255.65,255.57,16.0844]
[1732327146366,2.89818657,255.64,255.57,16.0844]
[1732327146670,2.89818657,255.63,255.57,16.0844]
[1732327146867,20.0,255.66,255.57,16.0844]
[1732327147081,2.89824928,255.65,255.57,16.0844]
[1732327147376,2.89824928,255.64,255.57,16.0844]
[1732327147558,7.53544967,255.66,255.57,16.0844]
[1732327147766,2.89794848,255.65,255.57,16.0844]
[1732327147950,2.89794848,255.64,255.57,16.0844]
[1732327148154,6.06549708,255.7,255.58,6.3852]
[1732327148155,4.63703637,255.66,255.58,6.3852]
[1732327148348,4.63818974,255.7,255.58,6.3852]
[1732327148547,5.82506568,255.71,255.58,6.3852]
[1732327148873,2.89885099,255.7,255.58,6.3852]
[1732327149168,2.89885099,255.69,255.58,6.3852]
[1732327149367,2.89885099,255.68,255.58,6.3852]
[1732327149569,2.89885099,255.67,255.58,6.3852]
[1732327149761,4.63816159,255.69,255.58,6.3852]
[1732327150069,2.89780032,255.68,255.58,6.3852]
[1732327150270,2.89780032,255.67,255.58,6.3852]
[1732327150459,2.89740696,255.66,255.58,6.3852]
[1732327150660,4.63816159,255.69,255.58,6.3852]
[1732327150975,2.89756482,255.68,255.58,6.3852]
[1732327151269,2.89756482,255.67,255.58,6.3852]
[1732327151468,2.89756482,255.66,255.58,6.3852]
[1732327151659,4.63816159,255.69,255.58,6.3852]
[1732327151863,2.89746273,255.68,255.58,6.3852]
[1732327152167,2.89746273,255.67,255.58,6.3852]
[1732327152350,20.0,255.71,255.58,6.3852]
[1732327152351,4.63816159,255.7,255.58,6.3852]
[1732327152549,2.89731431,255.69,255.58,6.3852]
[1732327152770,26.06549708,255.71,255.58,6.3852]
[1732327152971,7.53252488,255.7,255.58,6.3852]
[1732327153273,13.59802196,255.7,255.58,6.3852]
[1732327153570,2.89712495,255.69,255.58,6.3852]
[1732327153769,2.89712495,255.68,255.58,6.3852]
[1732327154072,2.89712495,255.67,255.58,6.3852]
[1732327154775,7.53248123,255.68,255.58,6.3852]
[1732327154978,29.84238108,255.69,255.58,6.3852]
[1732327155152,2.89697739,255.68,255.58,6.3852]
[1732327155357,2.89697739,255.69,255.58,6.3852]
[1732327155573,2.89697739,255.68,255.58,6.3852]
[1732327155780,2.89697739,255.67,255.58,6.3852]
[1732327155958,2.89697739,255.66,255.58,6.3852]
[1732327156278,23.776884,255.69,255.58,6.3852]
[1732327156588,7.53187532,255.68,255.58,6.3852]
[1732327156764,2.89671149,255.67,255.58,6.3852]
[1732327156960,2.89671149,255.66,255.58,6.3852]
[1732327157163,23.776884,255.65,255.58,6.3852]
[1732327157472,26.06549708,255.67,255.58,6.3852]
[1732327157473,7.52863199,255.64,255.58,6.3852]
[1732327157668,2.89671149,255.63,255.58,6.3852]
[1732327157871,2.89671149,255.62,255.58,6.3852]
[1732327158057,23.776884,255.65,255.58,6.3852]
[1732327158261,7.52565958,255.64,255.58,6.3852]
[1732327158460,2.89460204,255.63,255.58,6.3852]
[1732327158659,2.89460204,255.62,255.58,6.3852]
[1732327158876,4.63129279,255.64,255.58,6.3852]
[1732327159093,2.89444718,255.63,255.58,6.3852]
[1732327159271,2.89444718,255.62,255.58,6.3852]
[1732327159474,23.776884,255.63,255.58,6.3852]
[1732327159670,2.8944696,255.62,255.58,6.3852]
[1732327159868,5.8385973,255.65,255.58,6.3852]
[1732327160182,26.67161677,255.64,255.58,6.3852]
[1732327160479,26.06549708,255.67,255.58,6.3852]
[1732327160480,2.89473277,255.63,255.58,6.3852]
[1732327160788,2.89473277,255.62,255.58,6.3852]
[1732327161080,4.6315599,255.66,255.58,6.3852]
[1732327161260,2.89476286,255.65,255.58,6.3852]
[1732327161461,2.89476286,255.64,255.58,6.3852]
[1732327161668,2.89476286,255.63,255.58,6.3852]
[1732327161980,23.776884,255.66,255.58,6.3852]
[1732327162161,2.89474779,255.65,255.58,6.3852]
[1732327162481,2.89474779,255.64,255.58,6.3852]
[1732327162871,2.89474779,255.63,255.58,6.3852]
[1732327163084,23.776884,255.66,255.58,6.3852]
[1732327163266,2.89497875,255.65,255.58,6.3852]
[1732327163582,2.89497875,255.64,255.58,6.3852]
[1732327163763,23.776884,255.66,255.58,6.3852]
[1732327164079,2.89515308,255.65,255.58,6.3852]
[1732327164290,23.776884,255.66,255.58,6.3852]
[1732327164578,2.89514471,255.65,255.58,6.3852]
[1732327164774,2.89514471,255.64,255.58,6.3852]
[1732327164976,23.776884,255.72,255.58,6.3852]
[1732327165281,23.776884,255.7,255.58,6.3852]
[1732327165468,23.776884,255.68,255.58,6.3852]
[1732327165657,7.52756156,255.67,255.58,6.3852]
[1732327170485,2.89862553,255.66,255.58,6.3852]
[1732327170782,5.79719858,255.66,255.58,6.3852]
[1732327170967,2.89857305,255.65,255.58,6.3852]
[1732327174906,2.89737589,255.64,255.58,6.3852]
[1732327175071,2.89862553,255.66,255.58,6.3852]
[1732327175295,2.89725735,255.65,255.58,6.3852]
[1732327176786,2.89725735,255.64,255.58,6.3852]
[1732327176991,10.71713667,255.7,255.58,6.3852]
[1732327177171,2.89795736,255.69,255.58,6.3852]
[1732327177372,2.89795736,255.68,255.58,6.3852]
[1732327177577,2.89795736,255.67,255.58,6.3852]
[1732327177773,2.8980344,255.66,255.58,6.3852]
[1732327178289,6.08133525,255.7,255.58,6.3852]
[1732327178290,2.8980344,255.65,255.58,6.3852]
[1732327178484,6.08133525,255.7,255.58,6.3852]
[1732327178691,2.89798811,255.69,255.58,6.3852]
[1732327178887,2.89798811,255.68,255.58,6.3852]
[1732327179083,2.89798811,255.67,255.58,6.3852]
[1732327179278,2.89798811,255.66,255.58,6.3852]
[1732327179482,2.89798811,255.65,255.58,6.3852]
[1732327179683,6.08133525,255.7,255.58,6.3852]
[1732327179886,2.89795936,255.69,255.58,6.3852]
[1732327180090,2.89795936,255.68,255.58,6.3852]
[1732327180292,2.89795936,255.67,255.58,6.3852]
[1732327180494,2.89795936,255.66,255.58,6.3852]
[1732327180671,4.63685504,255.69,255.58,6.3852]
[1732327180875,2.8979377,255.68,255.58,6.3852]
[1732327181069,2.8979377,255.67,255.58,6.3852]
[1732327181289,2.8979377,255.66,255.58,6.3852]
[1732327181496,4.63685504,255.69,255.58,6.3852]
[1732327181684,2.89786081,255.68,255.58,6.3852]
[1732327181978,2.89786081,255.67,255.58,6.3852]
[1732327182180,2.89786081,255.66,255.58,6.3852]
[1732327182379,4.63685504,255.69,255.58,6.3852]
[1732327182592,2.89785552,255.68,255.58,6.3852]
[1732327182790,2.89785552,255.67,255.58,6.3852]
[1732327183092,10.57513721,255.7,255.58,6.3852]
[1732327183280,2.89785781,255.69,255.58,6.3852]
[1732327183470,2.89785781,255.68,255.58,6.3852]
[1732327183666,2.89785781,255.67,255.58,6.3852]
[1732327183872,10.57513721,255.7,255.58,6.3852]
[1732327184077,2.8977411,255.69,255.58,6.3852]
[1732327184273,2.8977411,255.68,255.58,6.3852]
[1732327184488,2.8977411,255.67,255.58,6.3852]
[1732327184681,10.57513721,255.7,255.58,6.3852]
[1732327184895,2.89753224,255.69,255.58,6.3852]
[1732327185200,2.89753224,255.68,255.58,6.3852]
[1732327185510,7.53438728,255.68,255.58,6.3852]
[1732327185669,2.89753224,255.67,255.58,6.3852]
[1732327185872,2.89733007,255.66,255.58,6.3852]
[1732327186073,4.63572812,255.68,255.58,6.3852]
[1732327186268,20.0,255.69,255.58,6.3852]
[1732327186474,7.53308283,255.68,255.58,6.3852]
[1732327189601,22.89724428,255.67,255.58,6.3852]
[1732327189796,2.89724428,255.66,255.58,6.3852]
[1732327189994,4.63564629,255.68,255.58,6.3852]
[1732327190194,2.89728289,255.67,255.58,6.3852]
[1732327190497,2.89728289,255.66,255.58,6.3852]
[1732327190687,2.89728289,255.65,255.58,6.3852]
[1732327190999,4.63564629,255.69,255.58,6.3852]
[1732327191296,2.89728756,255.68,255.58,6.3852]
[1732327191480,2.89728756,255.67,255.58,6.3852]
[1732327191682,5.93828217,255.7,255.58,6.3852]
[1732327191875,2.89741553,255.69,255.58,6.3852]
[1732327192083,2.89741553,255.68,255.58,6.3852]
[1732327192393,2.89741553,255.67,255.58,6.3852]
[1732327192592,24.63586485,255.7,255.58,6.3852]
[1732327192799,7.53316978,255.69,255.58,6.3852]
[1732327193002,2.89730493,255.68,255.58,6.3852]
[1732327193203,2.89730036,255.67,255.58,6.3852]
[1732327193373,4.63568057,255.69,255.58,6.3852]
[1732327193696,2.89729826,255.68,255.58,6.3852]
[1732327193995,2.89729826,255.67,255.58,6.3852]
[1732327194173,2.89731123,255.66,255.58,6.3852]
[1732327194380,4.63568057,255.69,255.58,6.3852]
[1732327194576,2.89747423,255.68,255.58,6.3852]
[1732327194874,2.89747423,255.67,255.58,6.3852]
[1732327195089,2.89747423,255.66,255.58,6.3852]
[1732327195288,20.0,255.68,255.58,6.3852]
[1732327195495,2.8858983,255.67,255.58,6.3852]
[1732327195800,2.8858983,255.66,255.58,6.3852]
[1732327195975,20.0,255.68,255.58,6.3852]
[1732327196175,2.88591401,255.67,255.58,6.3852]
[1732327196372,2.88591401,255.66,255.58,6.3852]
[1732327196570,20.0,255.68,255.58,6.3852]
[1732327197089,2.88600203,255.67,255.58,6.3852]
[1732327199588,2.8859443,255.66,255.58,6.3852]
[1732327200394,2.88600203,255.67,255.58,6.3852]
[1732327200796,2.88595827,255.66,255.58,6.3852]
[1732327200976,2.88600203,255.67,255.58,6.3852]
[1732327203502,23.776884,255.66,255.57,16.0844]
[1732327203809,20.0,255.65,255.52,6.6253]
[1732327204004,20.0,255.63,255.52,6.6253]
[1732327205100,6.08133525,255.66,255.52,6.6253]
[1732327205399,23.776884,255.64,255.52,6.6253]
[1732327205597,2.88520719,255.63,255.52,6.6253]
[1732327205802,6.08133525,255.66,255.52,6.6253]
[1732327205999,23.776884,255.64,255.52,6.6253]
[1732327206310,2.8851238,255.63,255.52,6.6253]
[1732327206476,23.776884,255.62,255.52,6.6253]
[1732327208105,23.776884,255.62,255.51,15.7614]
[1732327209690,20.0,255.61,255.51,15.7614]
[1732327209914,2.88385782,255.6,255.51,15.7614]
[1732327210206,20.0,255.61,255.46,6.6253]
[1732327210406,2.88383295,255.6,255.46,6.6253]
[1732327210716,20.0,255.61,255.46,6.6253]
[1732327210717,2.88383295,255.59,255.46,6.6253]
[1732327211004,20.0,255.61,255.46,6.6253]
[1732327211188,2.8825821,255.6,255.46,6.6253]
[1732327211391,2.8825821,255.59,255.46,6.6253]
[1732327211601,20.0,255.61,255.46,6.6253]
[1732327211786,2.88138582,255.6,255.46,6.6253]
[1732327212102,2.88138582,255.59,255.44,15.7614]
[1732327212288,20.0,255.58,255.44,15.7614]
[1732327213905,23.776884,255.62,255.44,15.7614]
[1732327214107,2.87924838,255.61,255.44,15.7614]
[1732327214407,23.776884,255.62,255.44,15.7614]
[1732327214914,2.8788262,255.61,255.44,15.7614]
[1732327215114,23.776884,255.62,255.44,15.7614]
[1732327215512,20.0,255.61,255.44,15.7614]
[1732327217006,20.0,255.61,255.45,6.1818]
[1732327217211,20.0,255.68,255.46,15.8779]
[1732327217408,2.88037814,255.67,255.46,15.8779]
[1732327217902,2.88037814,255.66,255.46,15.8779]
[1732327218108,6.08133525,255.7,255.46,15.8779]
[1732327218417,2.88175938,255.69,255.46,15.8779]
[1732327218621,2.88175938,255.68,255.48,15.8779]
[1732327218817,27.99411987,255.71,255.48,15.8779]
[1732327219116,2.88213631,255.7,255.48,15.8779]
[1732327219310,2.88213631,255.69,255.48,15.8779]
[1732327219618,21.91278462,255.71,255.48,15.8779]
[1732327219947,22.88250757,255.7,255.48,15.8779]
[1732327220212,22.88250757,255.69,255.48,15.8779]
[1732327220422,20.0,255.69,255.48,15.8779]
[1732327220601,2.88156976,255.68,255.48,15.8779]
[1732327220915,20.0,255.7,255.48,15.8779]
[1732327221089,2.88167679,255.69,255.48,15.8779]
[1732327221291,20.0,255.7,255.48,15.8779]
[1732327221292,2.88167679,255.68,255.48,15.8779]
[1732327221508,20.0,255.7,255.5,15.8779]
[1732327221697,20.0,255.7,255.51,6.1818]
[1732327221922,5.82678462,255.71,255.52,15.8779]
[1732327222222,6.08133525,255.76,255.52,15.8779]
[1732327222416,2.88426036,255.75,255.52,15.8779]
[1732327222720,16.086,255.77,255.52,15.8779]
[1732327222721,14.55426036,255.74,255.52,15.8779]
[1732327222909,2.88426036,255.73,255.52,15.8779]
[1732327223796,22.88426036,255.74,255.52,15.8779]
[1732327224008,2.88426036,255.73,255.52,15.8779]
[1732327224397,20.0,255.72,255.52,15.8779]
[1732327224596,2.88426036,255.71,255.52,15.8779]
[1732327226603,2.88426036,255.71,255.51,6.1818]
[1732327226604,2.88426036,255.71,255.54,15.8779]
[1732327226815,6.08133525,255.74,255.54,15.8779]
[1732327227117,22.88371267,255.73,255.54,15.8779]
[1732327227322,2.88369781,255.72,255.54,15.8779]
[1732327227523,20.0,255.74,255.54,15.8779]
[1732327227818,2.88360918,255.73,255.54,15.8779]
[1732327228202,2.88360918,255.73,255.55,20.0]
[1732327229501,2.88360918,255.74,255.55,20.0]
[1732327229721,2.88475615,255.73,255.55,20.0]
[1732327229907,20.0,255.76,255.56,22.0597]
[1732327230098,2.88504833,255.75,255.56,22.0597]
[1732327230300,2.88504833,255.74,255.56,22.0597]
[1732327230502,20.0,255.76,255.56,22.0597]
[1732327230799,2.88488197,255.75,255.56,22.0597]
[1732327231015,2.88488197,255.74,255.56,22.0597]
[1732327231321,2.88488197,255.73,255.56,22.0597]
[1732327231524,2.88488197,255.72,255.56,22.0597]
[1732327231704,26.08133525,255.76,255.56,22.0597]
[1732327231906,2.88482929,255.75,255.56,22.0597]
[1732327232115,2.88482929,255.74,255.56,22.0597]
[1732327232312,2.88482929,255.73,255.56,22.0597]
[1732327232504,20.0,255.76,255.56,22.0597]
[1732327232701,2.8845455,255.75,255.56,22.0597]
[1732327232908,2.8845455,255.74,255.56,22.0597]
[1732327233127,2.8845455,255.73,255.56,22.0597]
[1732327233308,20.0,255.76,255.56,22.0597]
[1732327233507,2.88476872,255.75,255.56,22.0597]
[1732327233823,2.88476872,255.74,255.56,22.0597]
[1732327234021,2.88476872,255.73,255.56,22.0597]
[1732327234226,2.88476872,255.72,255.56,22.0597]
[1732327234527,2.88476872,255.71,255.56,22.0597]
[1732327235026,2.88476872,255.7,255.56,22.0597]
[1732327235216,20.0,255.73,255.56,22.0597]
[1732327235418,2.88511357,255.72,255.56,22.0597]
[1732327235629,2.88511357,255.71,255.56,22.0597]
[1732327235925,2.88511357,255.7,255.56,22.0597]
[1732327236124,20.0,255.73,255.56,22.0597]
[1732327236125,2.88511357,255.69,255.56,22.0597]
[1732327236329,26.08133525,255.73,255.56,22.0597]
[1732327236527,2.88616732,255.72,255.56,22.0597]
[1732327236824,2.88616732,255.71,255.56,22.0597]
[1732327237125,2.88616732,255.7,255.56,22.0597]
[1732327237431,2.88616732,255.69,255.56,22.0597]
[1732327237613,26.08133525,255.73,255.56,22.0597]
[1732327237810,2.88748314,255.72,255.56,22.0597]
[1732327238012,2.88748314,255.71,255.56,22.0597]
[1732327238220,2.88748314,255.7,255.56,22.0597]
[1732327239323,23.0203,255.56,255.41,4.12306668]
[1732327239515,23.0203,255.56,255.41,6.62306668]
[1732327239711,23.0203,255.56,255.42,20.0]
[1732327240222,23.0203,255.56,255.43,5.0]
[1732327241019,23.0203,255.56,255.43,2.5]
[1732327241427,23.0203,255.56,255.42,25.0]
[1732327241914,23.0203,255.56,255.42,20.0]
[1732327242115,23.0203,255.56,255.41,24.12306668]
[1732327242322,20.0,255.55,255.39,20.0]
[1732327242512,20.0,255.55,255.41,20.0]
[1732327243226,20.0,255.55,255.4,16.0751]
[1732327244136,23.0203,255.56,255.44,6.6059]
[1732327244434,23.0203,255.56,255.45,16.0751]
[1732327247418,20.0,255.55,255.45,16.0751]
[1732327260141,23.0203,255.56,255.45,16.0751]
[1732327263333,20.0,255.55,255.45,16.0751]
[1732327265023,20.0,255.55,255.39,16.5034]
[1732327266944,26.0577,255.53,255.33,16.5034]
[1732327267944,26.41542165,255.53,255.33,16.5034]
[1732327268548,26.0577,255.53,255.33,16.5034]
[1732327268750,3.24447518,255.52,255.33,16.5034]
[1732327268949,0.35772165,255.52,255.33,16.5034]
[1732327269250,23.776884,255.5,255.27,16.5034]
[1732327269457,20.0,255.49,255.27,16.5034]
[1732327269630,45.610584,255.46,255.21,19.0034]
[1732327269834,23.776884,255.44,255.21,19.0034]
[1732327270241,23.776884,255.42,255.21,16.5034]
[1732327270544,23.776884,255.38,255.21,16.5034]
[1732327270741,20.0,255.37,255.21,16.5034]
[1732327272538,23.776884,255.38,255.21,16.5034]
[1732327272539,20.0,255.45,255.22,0.58754425]
[1732327272847,27.84490057,255.46,255.24,2.5]
[1732327273052,27.84490057,255.46,255.24,3.08729725]
[1732327274243,20.0,255.45,255.24,3.08729725]
[1732327275347,20.0,255.45,255.24,0.58729725]
[1732327275655,20.0,255.45,255.25,2.5]
[1732327275855,20.0,255.51,255.28,2.5]
[1732327276147,23.2147,255.52,255.28,2.5]
[1732327276334,23.2147,255.52,255.27,6.4829]
[1732327276755,23.2147,255.52,255.3,2.5]
[1732327276959,23.2147,255.52,255.3,3.08719149]
[1732327277332,16.5622,255.52,255.3,23.08719149]
[1732327278836,16.5622,255.52,255.31,22.5]
[1732327279567,20.0,255.51,255.32,22.0719]
[1732327279859,43.776884,255.55,255.32,22.0719]
[1732327280660,20.0,255.55,255.33,3.08715644]
[1732327280839,23.776884,255.54,255.33,8.97518764]
[1732327281166,23.776884,255.54,255.34,20.0]
[1732327281167,20.0,255.53,255.34,20.0]
[1732327281458,20.0,255.53,255.35,0.58709711]
[1732327281633,23.776884,255.55,255.35,0.58709711]
[1732327282256,23.776884,255.55,255.33,2.5]
[1732327282554,23.776884,255.55,255.33,22.5]
[1732327282767,23.776884,255.55,255.33,20.0]
[1732327283055,23.776884,255.55,255.32,22.0719]
[1732327283056,23.776884,255.51,255.32,22.0719]
[1732327283259,20.0,255.53,255.32,22.0719]
[1732327283461,20.0,255.51,255.32,22.0719]
[1732327284076,20.0,255.53,255.32,22.0719]
[1732327284240,23.776884,255.52,255.32,22.0719]
[1732327284440,20.0,255.51,255.32,22.0719]
[1732327284656,20.0,255.49,255.32,22.0719]
[1732327285046,20.0,255.47,255.32,22.0719]
[1732327285447,23.776884,255.46,255.32,22.0719]
[1732327285666,20.0,255.45,255.32,22.0719]
[1732327286044,20.0,255.55,255.33,20.0]
[1732327286358,23.776884,255.54,255.33,20.0]
[1732327286872,20.0,255.51,255.33,20.0]
[1732327287055,20.0,255.55,255.33,20.0]
[1732327287271,20.0,255.55,255.32,22.0719]
[1732327288155,23.776884,255.54,255.32,22.0719]
[1732327288363,23.776884,255.52,255.32,22.0719]
[1732327288543,20.0,255.49,255.32,22.0719]
[1732327288743,23.776884,255.48,255.32,22.0719]
[1732327289265,23.776884,255.46,255.32,22.0719]
[1732327289447,20.0,255.45,255.32,22.0719]
[1732327290142,20.0,255.43,255.32,22.0719]
[1732327290343,20.0,255.41,255.32,22.0719]
[1732327291567,20.0,255.45,255.26,15.4378]
[1732327291748,43.776884,255.43,255.26,15.4378]
[1732327292062,20.0,255.4,255.26,15.4378]
[1732327292266,23.776884,255.39,255.26,15.4378]
[1732327292447,20.0,255.38,255.26,15.4378]
[1732327292654,20.0,255.45,255.26,15.4378]
[1732327292847,20.0,255.43,255.26,15.4378]
[1732327293049,20.0,255.41,255.26,15.4378]
[1732327293262,23.776884,255.4,255.26,15.4378]
[1732327293450,20.0,255.37,255.26,15.4378]
[1732327293965,20.0,255.35,255.26,15.4378]
[1732327294672,43.776884,255.46,255.26,15.4378]
[1732327298852,43.776884,255.46,255.26,16.02516105]
[1732327299170,20.0,255.46,255.26,16.02516105]
[1732327300167,20.0,255.46,255.26,15.4378]
[1732327300362,23.776884,255.45,255.26,15.4378]
[1732327300561,20.0,255.44,255.26,15.4378]
[1732327300950,23.776884,255.43,255.26,15.4378]
[1732327301145,20.0,255.42,255.26,15.4378]
[1732327301550,20.0,255.4,255.26,15.4378]
[1732327301771,20.0,255.38,255.26,15.4378]
[1732327301950,23.776884,255.37,255.26,15.4378]
[1732327302151,20.0,255.36,255.26,15.4378]
[1732327303557,20.0,255.46,255.26,15.4378]
[1732327303753,20.0,255.44,255.26,15.4378]
[1732327304057,20.0,255.42,255.26,15.4378]
[1732327304485,23.776884,255.41,255.26,15.4378]
[1732327304780,20.0,255.4,255.26,15.4378]
[1732327304955,23.776884,255.39,255.26,15.4378]
[1732327305273,20.0,255.38,255.26,15.4378]
[1732327305474,20.0,255.36,255.26,15.4378]
[1732327305654,20.0,255.34,255.26,15.4378]